Cogmind - Beta 12 @@@ ROGUE MODE // 2023.10.27 @ 18:17:44 Player: FrostySpirit Result: Destroyed by S-10 Pest with Light Assault Rifle Performance ------------- Evolutions (1) 500 Regions Visited (3) 600 Robots Destroyed (0) 0 Value Destroyed (0) 0 Prototype IDs (0) 0 Alien Tech Used (0) 0 Bonus (200) 200 TOTAL SCORE: 1300 Bonus ------- Pacifist 200 Cogmind --------- Core Integrity 0/400 Matter 300/300 Energy 99/100 System Corruption 0% Temperature Cool (0) Movement Core (50) Location -9/Mines Parts ------- > --- POWER (1) -------- (None) > --- PROPULSION (4) --- (None) > --- UTILITY (2) ------ Transport Network Coupler > --- WEAPON (2) ------- (None) > --- INVENTORY (5) ---- Heat Sink Large Battery (200) Peak State ------------ > --- POWER ------------ Light Ion Engine > --- PROPULSION ------- (None) > --- UTILITY ---------- Sensor Array Sensor Array > --- WEAPON ----------- (None) > --- INVENTORY -------- Large Battery [Rating: 3] Favorites ----------- Power Light Ion Engine Engine Light Ion Engine Propulsion Flight Unit Flight Unit Flight Unit Utility Transport Network Coupler Device Sensor Array Storage Large Battery Processor Transport Network Coupler Weapon Mining Laser Special Weapon Mining Laser Build | -11 -10 -9 -9 ------- Run | Jun Mat Mat Min Slots Evolved 2 | . . 2 . Power . | . . . . Propulsion 2 | . . 2 . Utility . | . . . . Weapon . | . . . . Parts Attached 7 | 1 . 4 2 Power 1 | 1 . . . Engine 1 | 1 . . . Core . | . . . . Reactor . | . . . . Propulsion 1 | . . . 1 Treads . | . . . . Leg . | . . . . Wheel . | . . . . Hover . | . . . . Flight 1 | . . . 1 Utility 4 | . . 3 1 Device 2 | . . 2 . Storage 1 | . . 1 . Processor 1 | . . . 1 Hackware . | . . . . Protection . | . . . . Artifact . | . . . . Weapon 1 | . . 1 . Energy Gun . | . . . . Energy Cannon . | . . . . Ballistic Gun . | . . . . Ballistic Cannon . | . . . . Launcher . | . . . . Special Weapon 1 | . . 1 . Impact Weapon . | . . . . Slashing Weapon . | . . . . Piercing Weapon . | . . . . Special Melee Weapon . | . . . . Unidentified Prototypes . | . . . . Parts Lost 5 | . . 3 2 Power 1 | . . 1 . Propulsion 1 | . . . 1 Utility 2 | . . 2 . Weapon 1 | . . . 1 Highest Loss Streak 3 | . . 3 2 To Critical Strikes . | . . . . Average Slot Usage (%) 16 | . 14 14 18 Engine 3 | . 14 6 . Device 2 | . . 6 . Processor 6 | . . . 11 Special Weapon 4 | . . . 7 Naked Turns 6 | . . 6 . Heaviest Build 6 | 3 3 6 1 Greatest Support 4 | 3 3 3 4 Greatest Overweight (x) 1 | . . 1 . Average Overweight (x) . | . . . . Largest Inventory Capacity 5 | 5 5 5 5 Average Capacity 5 | 5 5 5 5 Most Carried 2 | . . 1 2 Average Carried 1 | . . . 1 Final Capacity 5 | 5 5 5 5 Final Carried 2 | . . 1 2 Class Distribution -------------------- 100% | Mutant Dominant Class ---------------- Mutant | -10/Materials Mutant | -9/Materials Mutant | -9/Mines Resources | -11 -10 -9 -9 ----------- Run | Jun Mat Mat Min Matter Collected 255 | 210 . 20 25 Remotely . | . . . . Salvage Created . | . . . . Parts . | . . . . Haulers Intercepted . | . . . . Recyclers Shooed . | . . . . Parts Field Recycled . | . . . . Retrieved Matter . | . . . . Parts Self-Destructed . | . . . . Prevented . | . . . . Kills | -11 -10 -9 -9 ------- Run | Jun Mat Mat Min Combat Hostiles Destroyed . | . . . . Classes Destroyed . | . . . . Best Kill Streak . | . . . . Combat Bots Only . | . . . . Max Kills in Single Turn . | . . . . Gunslinging . | . . . . Exploded . | . . . . Melee . | . . . . Uniques/NPCs Destroyed . | . . . . Combat | -11 -10 -9 -9 -------- Run | Jun Mat Mat Min Damage Taken 570 | . 22 250 298 Core 422 | . 16 146 260 Absorbed by Shields . | . . . . Core Remaining (%) 96 | 100 93 . . Volleys Fired 8 | . . . 8 Largest 1 | . . . 1 Hottest 100 | . . . 100 Shots Fired 8 | . . . 8 Gun . | . . . . Cannon . | . . . . Launcher . | . . . . Special 8 | . . . 8 Kinetic . | . . . . Thermal 8 | . . . 8 Explosive . | . . . . Electromagnetic . | . . . . Robot Hit Streak . | . . . . Robot Miss Streak . | . . . . Penetration Max . | . . . . Secondary Targets . | . . . . Shots Hit Robots . | . . . . Core Hits . | . . . . Critical Kills . | . . . . Critical Parts Destroyed . | . . . . Critical Strikes . | . . . . Melee Attacks . | . . . . Impact . | . . . . Slashing . | . . . . Piercing . | . . . . Sneak Attacks . | . . . . Combat Hostiles . | . . . . Follow-up Attacks . | . . . . Damage Inflicted . | . . . . Guns . | . . . . Cannons . | . . . . Explosions . | . . . . Melee . | . . . . Ramming . | . . . . Kinetic . | . . . . Thermal . | . . . . Explosive . | . . . . Electromagnetic . | . . . . Impact . | . . . . Slashing . | . . . . Piercing . | . . . . Highest Corruption . | . . . . Average Corruption . | . . . . Corruption Purged . | . . . . Corruption Blocked . | . . . . Overload Shots . | . . . . Overflow Damage . | . . . . Projectiles . | . . . . Explosions . | . . . . Melee . | . . . . Knockbacks . | . . . . Impact . | . . . . Kinetic . | . . . . Secondary . | . . . . Self-Inflicted Damage . | . . . . Shots . | . . . . Rammed . | . . . . Targets Rammed . | . . . . Kicked . | . . . . Crushed . | . . . . Highest Temperature . | . . . . Average Temperature . | . . . . Received Heat Transfer 42 | . . 42 . Siege Activations . | . . . . Robots Corrupted . | . . . . Combat Hostiles . | . . . . Parts Fried . | . . . . Impact Corruptions . | . . . . Robots Melted . | . . . . Combat Hostiles . | . . . . Parts Melted . | . . . . Heat Transferred . | . . . . Parts Sabotaged . | . . . . Parts Stolen . | . . . . Parts Stripped . | . . . . Power Chain Reactions . | . . . . Missiles Intercepted . | . . . . Alert | -11 -10 -9 -9 ------- Run | Jun Mat Mat Min Peak Influence 43 | . 24 43 23 Initial 10 | . . 9 10 Average 14 | . 8 24 12 Maximum Alert Level . | . . . . Low Security (%) 100 | 100 100 100 100 Level 1 . | . . . . Level 2 . | . . . . Level 3 . | . . . . Level 4 . | . . . . Level 5 . | . . . . High Security . | . . . . Max Security . | . . . . Squads Dispatched . | . . . . Investigation . | . . . . Extermination . | . . . . Reinforcement . | . . . . Assault . | . . . . Garrison . | . . . . Intercept . | . . . . Searches Triggered . | . . . . Construction Impeded . | . . . . Haulers Reinforced . | . . . . Active Scanning Responses . | . . . . Cargo Convoy Interrupts . | . . . . Stealth | -11 -10 -9 -9 --------- Run | Jun Mat Mat Min Distress Signals 1 | . . 1 . Communications Jammed . | . . . . Distress Signals . | . . . . Times Spotted 21 | . 4 9 8 Peak Tracking Total 9 | . 4 9 7 Tactical Retreats 1 | . . . 1 Traps | -11 -10 -9 -9 ------- Run | Jun Mat Mat Min Traps Triggered . | . . . . Indirectly . | . . . . Trap Hack Attempts . | . . . . Triggered . | . . . . Disarmed . | . . . . Reprogrammed . | . . . . Reused . | . . . . Traps Extracted . | . . . . Installed . | . . . . Triggered . | . . . . Machines | -11 -10 -9 -9 ---------- Run | Jun Mat Mat Min Machines Disabled . | . . . . Max in Single Turn . | . . . . Machines Repaired . | . . . . Machines Sabotaged . | . . . . Overloaded Fab Kills . | . . . . Hacking | -11 -10 -9 -9 --------- Run | Jun Mat Mat Min Machines Accessed 3 | . 2 1 . Terminals 3 | . 2 1 . Fabricators . | . . . . Repair Stations . | . . . . Recycling Units . | . . . . Scanalyzers . | . . . . Garrison Access . | . . . . Total Hacks 7 | . 3 4 . Successful 3 | . 2 1 . Failed 4 | . 1 3 . Catastrophic . | . . . . Database Lockouts . | . . . . Manual . | . . . . Terminals 7 | . 3 4 . Fabricators . | . . . . Repair Stations . | . . . . Recycling Units . | . . . . Scanalyzers . | . . . . Garrison Access . | . . . . Terminal Hacks 3 | . 2 1 . Dispatch Records 2 | . 1 1 . Zone Layout 1 | . 1 . . Fabricator Hacks . | . . . . Repair Station Hacks . | . . . . Recycling Unit Hacks . | . . . . Scanalyzer . | . . . . Garrison Access Hacks . | . . . . Unauthorized Hacks . | . . . . Terminals . | . . . . Fabricators . | . . . . Repair Stations . | . . . . Recycling Units . | . . . . Scanalyzers . | . . . . Garrison Access . | . . . . Data Cores Recovered . | . . . . Used . | . . . . Hacking Detections 2 | . 2 . . Full Trace Events . | . . . . Feedback Events . | . . . . Feedback Blocked . | . . . . Robot Schematics Acquired . | . . . . Robots Built . | . . . . Authchips . | . . . . Time . | . . . . Total Robot Build Rating . | . . . . Part Schematics Acquired . | . . . . Parts Built . | . . . . Authchips . | . . . . Time . | . . . . Total Part Build Rating . | . . . . Parts Repaired . | . . . . Time . | . . . . Parts Recycled . | . . . . Recycled Matter . | . . . . Retrieved Matter . | . . . . Retrieved Components . | . . . . Parts Scanalyzed . | . . . . Part Schematics Acquired . | . . . . Parts Damaged . | . . . . Bothacking | -11 -10 -9 -9 ------------ Run | Jun Mat Mat Min Used RIF Installer . | . . . . Robots Hacked . | . . . . Non-combat . | . . . . Combat . | . . . . Robot Hacks Applied . | . . . . Relay Couplers Released . | . . . . Fabnet Peak Effective % . | . . . . Robots Rewired . | . . . . Allies Hacked . | . . . . Hacks Repelled . | . . . . Allies | -11 -10 -9 -9 -------- Run | Jun Mat Mat Min Total Allies . | . . . . Largest Group . | . . . . Highest-Rated Group . | . . . . Highest-Rated Ally . | . . . . Total Orders . | . . . . Ally Attacks . | . . . . Total Damage . | . . . . Kills . | . . . . Allies Corrupted . | . . . . Allies Melted . | . . . . Intel | -11 -10 -9 -9 ------- Run | Jun Mat Mat Min Robot Analysis Total . | . . . . Derelict Logs Recovered . | . . . . Drone Launches . | . . . . Drone Recoveries . | . . . . Exploration | -11 -10 -9 -9 ------------- Run | Jun Mat Mat Min Turns Passed 345 | 19 43 99 184 Spaces Moved 533 | 35 82 168 248 Core 522 | 35 82 168 237 Treads . | . . . . Legs . | . . . . Wheels . | . . . . Hover . | . . . . Flight 11 | . . . 11 Fastest Speed 40 | 50 50 50 40 Average Speed 50 | 50 50 53 49 Slowest Speed 100 | 50 50 100 50 Overloaded Moves . | . . . . Propulsion Burnouts . | . . . . Robots Hopped 3 | . . . 3 Cave-ins Triggered . | . . . . Exploration Rate (%) 24 | 2 22 20 54 Regions Visited 3 Branch Regions 1 Pre-discovered Areas . | . . . . Known Exits Taken . | . . . . Unknown Exits Taken 3 | 1 1 1 . Scrap Searched 1 | . . . 1 Spaces Dug 8 | . . . 8 Terrain Destroyed 8 | . . . 8 Melee . | . . . . Projectile 8 | . . . 8 AOE . | . . . . Terrain Rammed . | . . . . Walls Destroyed . | . . . . Machines Disabled . | . . . . Actions | -11 -10 -9 -9 --------- Run | Jun Mat Mat Min Total 574 | 35 83 175 281 Wait 23 | . 2 3 18 Move 525 | 34 81 167 243 Hop 2 | . . . 2 Pick Up 1 | . . . 1 Fast Attach 7 | 1 . 4 2 Attach . | . . . . Detach 1 | . . 1 . Swap . | . . . . Drop . | . . . . Fire 8 | . . . 8 Melee . | . . . . Ram . | . . . . Kick . | . . . . Crush . | . . . . Escape Stasis . | . . . . Rewire 7 | . . . 7 Trap . | . . . . Miscellaneous . | . . . . Route ------- -11/Junkyard -10/Materials -9/Materials -9/Mines History --------- Turn | Location | Event 10 | -11/Junkyard | Discovered new exit (range 15) 20 | -11/Junkyard | Entered Materials 59 | -10/Materials | Discovered new exit (range 10) 63 | -10/Materials | Entered another Materials area 63 | -9/Materials | Evolved 2 slots: Propulsion x2 152 | -9/Materials | Discovered new exit (range 13) 162 | -9/Materials | Entered Mines 185 | -9/Mines | Lost 3 parts (1p2u) 290 | -9/Mines | Core integrity fell below 50% 317 | -9/Mines | Core integrity fell below 20% 326 | -9/Mines | Build established: Mutant 346 | -9/Mines | Destroyed by S-10 Pest with Light Assault Rifle Last Messages --------------- 00173_ T-07 Excavator is broken beyond repair. 00174_ Attempting to rewire T-07 Excavator. 00174_ T-07 Excavator is broken beyond repair. 00175_ Attempting to rewire T-07 Excavator. 00175_ T-07 Excavator is broken beyond repair. 00176_ Attempting to rewire T-07 Excavator. 00176_ T-07 Excavator is broken beyond repair. 00235_ The unstable cave ceiling collapses. 00269_ K-01 Serf collects debris. 00287_ Mining Laser destroyed. 00289_ Searching scrap... 00289_ Found Disposable Heat Sink. 00289_ Found 22 Matter. 00290_ Acquired 15 matter. 00305_ Acquired Flight Unit. 00307_ S-10 Pest destroyed. 00309_ Acquired 10 matter. 00309_ S-10 Pest destroyed. 00311_ Flight Unit destroyed. 00316_ K-01 Serf collects debris. Map ----- +----------------------------------------------------+ | ????????????????????????????????????####????????? | | ????????????????????????????????????# ????????? | | ????????????????????????????????????# ????????? | | ???????????????????????????####?????# #????????? | | ??????????????????????????## ##????# #????????? | | ?????????????????????????## ????? #????????? | | ????????????????????????## #?????# #######??? | | ???????????????????????## ####### ## #### | | ??????????????????????## # | | ?????????????????????## ####### # | | ????????????????????## #?????# ## | | ???????????????????## ##????## ## | | ???????????????????# ##????## ## | | ???????????????????# ##?????# #?# | | ???????????????????## s##?????# #??# | | ????????????????????## ###???## #### | | ?????????????????????# ##???## ## | | ????????????????????## sss #????## | | ????????????????????# s #????## ## | | ????????????????????# ##???## ## ##? | | ????????????????????# ##???# ######?? | | ????????????????????## ##??# ##??????? | | ?????????????????????## ##?## #???????? | | ??????????????????????## ##?# #???????? | | ??????????????????###### ## #????#### | | ??????????????????# @ ????# | | ?????????????????# ????# | | ?????????????????# ### ????# # | | ?????????????????## ## #?# ????# # | | ??????????????????######## #? ###### # | | ????????????????????????# #? ## | | ????????????????????????# #### #?# """" "" | | ???????????????????????## #??###??# """" "" | | ???????????????????##### ##??????## """" "" | | ?????????####?????## #??????##" | | ????????## ##???## #??????# #"####### | | ????????# #??## ##??????## ##?????? | | ??####??# #### ###???????# #??????? | | ?## #### ## ##?????????####??????? | | ?# ###????########"#??????? | | ?# ##????## ##?????? | | ?# ###### ## ###?## ###???? | | ?## [ #???## ###### ### ##??? | | ??## #????####????## ## #??? | | ???#####?????????????## #### #??? | | ??????????????????????# ##??### ##??? | | ??????????????????????## ##??????###???? | | ???????????????????????###### ###?????????????? | | ????????????????????????????#####???????????????? | | ????????????????????????????????????????????????? | +----------------------------------------------------+ Best States ------------- Heat Dissipation 28 Energy Generation 10 Energy Capacity 325 Matter Stores 300 Matter Capacity 300 Sight Range 16 Robot Scan Range 14 Terrain Scan Density 10 Evasion (%) 62 Item Schematics ----------------- None Robot Schematics ------------------ None Fabricated ------------ Nothing Alien Tech Used ----------------- None Achievements -------------- None Challenges ------------ None Game ------ Seed ResetAerolevMount Manual? 0 Play Time 00:14:07 Cumulative 17.3 hours Start 2023.10.27 @ 18:05:52 End 2023.10.27 @ 18:17:44 Sessions 1 Manual Loads 0 Difficulty Rogue Special Mode None Game No. 28 Rogue 28 Adventurer 0 Explorer 0 Win Type - Total 0 Types 0/0/0/0/0/0/0/0/0 Lore% 18 Gallery% 28 Achievement% 20 Wizard Run 0 Options --------- ASCII 0 Keyboard 0 Movement Numpad Keybinds 0 Fullscreen 1 Font 18/TerminusBold Map View 76x50 Tactical HUD 1 Map Filters NONE Filters NONE Steam 1 RUN: cc792473-2b91-49a7-90a6-ba028bb9c011